fUSD/lending_fUSD_20250720
["ID","MTS","AMOUNT","RATE_DAILY","PERIOD"]
[373563449,1753044157403,-335.5667063,0.000166,2]
[373563450,1753044157425,-12.0,0.000169,2]
[373563453,1753044178727,527.0,0.00016155,2]
[373563454,1753044208803,742.6482,0.00016155,2]
[373563455,1753044359094,-1320.735135,0.00016576,2]
[373563456,1753044359115,-2057.918,0.0001666,2]
[373563457,1753044359136,-181.109,0.0001666,2]
[373563458,1753044359156,-311.68083445,0.00016973,2]
[373563459,1753044430127,-188.31916555,0.00016973,2]
[373563460,1753044430152,-1200.0,0.00016989,2]
[373563461,1753044430173,-300.0,0.00016989,2]
[373563462,1753044430194,-333.0,0.00016989,2]
[373563463,1753044430218,-151.0,0.0001699,2]
[373563464,1753044430242,-151.0,0.0001699,2]
[373563465,1753044430267,-151.0,0.0001699,2]
[373563466,1753044430291,-151.0,0.0001699,2]
[373563467,1753044430314,-151.0,0.0001699,2]
[373563468,1753044430338,-151.0,0.0001699,2]
[373563469,1753044430359,-151.0,0.0001699,2]
[373563470,1753044430383,-151.0,0.0001699,2]
[373563471,1753044430404,-151.0,0.0001699,2]
[373563472,1753044430425,-151.0,0.0001699,2]
[373563473,1753044430447,-151.0,0.0001699,2]
[373563474,1753044430469,-151.0,0.0001699,2]
[373563475,1753044430493,-151.0,0.0001699,2]
[373563476,1753044430514,-127.29124227,0.0001699,2]
[373563477,1753044453100,-23.70875773,0.0001699,2]
[373563478,1753044453122,-151.0,0.0001699,2]
[373563479,1753044453145,-151.0,0.0001699,2]
[373563480,1753044453167,-151.0,0.0001699,2]
[373563481,1753044453189,-1371.55931254,0.00017,2]
[373563487,1753044562098,-171.53831325,0.000169,2]
[373563494,1753044631753,-1.18268864,0.000169,2]
[373563495,1753044631763,-298.06731136,0.00016999,2]
[373563496,1753044631775,-901.93268864,0.00016999,2]
[373563497,1753044631784,-300.0,0.00016999,2]
[373563498,1753044631794,-287.50705652,0.00016999,2]
[373563499,1753044631803,-1346.68911219,0.00017,2]
[373563500,1753044631814,-841.64322174,0.00017,2]
[373563501,1753044631826,-351.41498433,0.00017,2]
[373563502,1753044631837,-5878.35377835,0.00017,2]
[373563503,1753044631848,-2171.9368,0.00017,2]
[373563504,1753044631865,-385.8572887,0.00017,2]
[373563505,1753044631922,-15310.02044083,0.00017,2]
[373563506,1753044631934,-2866.63110955,0.00017,2]
[373563507,1753044631980,-8338.82022752,0.00017,2]
[373563522,1753044637222,-1993.85410016,0.00017,2]
[373563558,1753044637682,-1608.27831405,0.00017,2]
[373563559,1753044637694,-1363.73281309,0.00017,2]
[373563560,1753044637706,-10426.97616762,0.00017,2]
[373563561,1753044637737,-5121.33449712,0.00017,2]
[373563562,1753044637749,-4377.38063341,0.00017,2]
[373563563,1753044637761,-4461.03200679,0.00017,2]
[373563564,1753044637901,-1000.0,0.00017,2]
[373563565,1753044637913,-525.21162137,0.00017,2]
[373563566,1753044637925,-7836.30197012,0.00017,2]
[373563745,1753044639872,-689.43203415,0.00017,2]
[373563748,1753044639883,-3943.36645315,0.00017,2]
[373563765,1753044640037,-1860.0,0.00017,2]
[373563781,1753044640184,-0.03775349,0.00017,2]
[373563784,1753044640195,-311.98467846,0.00017,2]
[373563787,1753044640222,-333.4284647,0.00017,2]
[373563789,1753044640233,-1119.72708109,0.00017,2]
[373563792,1753044640248,-1754.399996,0.00017,2]
[373563794,1753044640259,-7469.99992,0.00017,2]
[373564047,1753044642759,-12471.8427244,0.00017,2]
[373564064,1753044642917,-2345.6,0.00017,2]
[373564067,1753044642929,-3690.98211898,0.00017,2]
[373564084,1753044643077,-75225.30042401,0.00017,2]
[373564285,1753044645854,-356.48784019,0.00017,2]
[373564286,1753044645911,-11699.0,0.00017,2]
[373564287,1753044645922,-1084.4,0.00017,2]
[373564288,1753044645933,-47228.0,0.00017,2]
[373564289,1753044646130,-2964.60000002,0.00017,2]
[373564290,1753044646242,-1753.8545,0.00017,2]
[373564314,1753044646572,-2813.42903773,0.00017,2]
[373564372,1753044778201,151.0,0.00025,120]
[373564374,1753044970792,213.38,0.00013699,2]
[373564379,1753045129908,609.17,0.00024775,120]
[373564390,1753045285716,200.0,0.00016193,2]
[373564413,1753045317132,968.74,0.00016193,2]
[373564417,1753045399195,368.4,0.0001609,2]
[373564418,1753045407054,154.2338566,0.00016147,2]
[373564420,1753045531825,152.77348165,0.00016199,2]
[373564421,1753045537648,164.09,0.00016044,2]
[373564422,1753045546085,-177.35107315,0.00016247,2]
[373564423,1753045546107,-726.59,0.00016247,2]
[373564424,1753045546128,-250.0,0.00016258,2]
[373564425,1753045546149,-144.89634204,0.00016287,2]
[373564426,1753045600625,426.15,0.00016201,2]
[373564430,1753045638463,-524.0,0.00016287,2]
[373564431,1753045638484,-879.5,0.000163,2]
[373564432,1753045638506,-177.35107315,0.00016402,2]
[373564433,1753045638532,-149.64516666,0.00016402,2]
[373564434,1753045648080,-367.63614567,0.00016402,2]
[373564437,1753045653208,-236.67805356,0.00016402,2]
[373564440,1753045746074,-502.25063411,0.00016402,2]
[373564441,1753045746094,-199.72,0.00016425,2]
[373564442,1753045746114,-1000.0,0.00016466,2]
[373564443,1753045746135,-1200.0,0.00016479,2]
[373564444,1753045746156,-300.0,0.00016479,2]
[373564445,1753045746176,-300.0,0.00016479,2]
[373564446,1753045746198,-2393.96325729,0.0001648,2]
[373564447,1753045756082,-4986.64229,0.0001648,2]
[373564448,1753045767106,-379.45,0.00016384,2]
[373564449,1753045767134,-11049.25445271,0.0001648,2]
[373564450,1753045767159,-586.27,0.00016483,2]
[373564451,1753045767187,-609.17,0.00016517,2]
[373564452,1753045767216,-150.0,0.00016534,2]
[373564453,1753045767243,-970.07,0.00016564,2]
[373564454,1753045767269,-377.82140287,0.00016752,2]
[373564455,1753045812554,315.15927901,0.000211,28]
[373564463,1753045832116,-666.0,0.00016623,2]
[373564464,1753045832125,-401.58199811,0.00016752,2]
[373564465,1753045832136,-193.09,0.00016822,2]
[373564466,1753045832147,-180.40903874,0.00016829,2]
[373564467,1753045832157,-1200.0,0.00016829,2]
[373564468,1753045832166,-69225.33228776,0.0001683,2]
[373564469,1753045832199,-3515.86089306,0.0001683,2]
[373564470,1753045832211,-1750.00001,0.0001683,2]
[373564478,1753045837426,-2929.83795379,0.0001683,2]
[373564479,1753045837482,-603.84235597,0.0001683,2]
[373564527,1753045838020,-1514.21606478,0.0001683,2]
[373564530,1753045838036,-4572.82486512,0.0001683,2]
[373564533,1753045838055,-20451.28534661,0.0001683,2]
[373564535,1753045838066,-2024.77668993,0.0001683,2]
[373564537,1753045838201,-451.651306,0.0001683,2]
[373564538,1753045838212,-1990.31982603,0.0001683,2]
[373564539,1753045838224,-437.94,0.0001683,2]
[373564540,1753045838235,-1310.00149042,0.0001683,2]
[373564541,1753045838246,-524.41528818,0.0001683,2]
[373564544,1753045838261,-15686.18852642,0.0001683,2]
[373564546,1753045838272,-555.62966684,0.0001683,2]
[373564548,1753045838283,-302.52000004,0.0001683,2]
[373564550,1753045838294,-329.1532605,0.0001683,2]
[373564552,1753045838306,-1570.00000011,0.0001683,2]
[373564556,1753045838329,-16242.8241656,0.0001683,2]
[373564558,1753045838338,-507.69667,0.0001683,2]
[373564560,1753045838347,-550.18041886,0.00016899,2]
[373564562,1753045838356,-900.0,0.000169,6]
[373564564,1753045838366,-208.13366714,0.000169,2]
[373564566,1753045838375,-152.0,0.00016967,2]
[373564568,1753045838384,-152.0,0.00016967,2]
[373564570,1753045838393,-152.0,0.00016967,2]
[373564572,1753045838403,-152.0,0.00016967,2]
[373564574,1753045838412,-152.0,0.00016967,2]
[373564576,1753045838422,-152.0,0.00016967,2]
[373564578,1753045838431,-152.0,0.00016967,2]
[373564580,1753045838441,-152.0,0.00016967,2]
[373564582,1753045838450,-1210.0,0.00016967,2]
[373564584,1753045838458,-152.0,0.00016967,2]
[373564586,1753045838468,-490.05138225,0.00016967,2]
[373564588,1753045838478,-152.0,0.00016967,2]
[373564590,1753045838487,-153.0,0.00016967,2]
[373564592,1753045838496,-152.0,0.00016967,2]
[373564600,1753045838768,-153.0,0.00016967,2]
[373564602,1753045838777,-152.0,0.00016967,2]
[373564604,1753045838787,-153.0,0.00016967,2]
[373564605,1753045838796,-152.0,0.00016967,2]
[373564608,1753045838806,-153.0,0.00016967,2]
[373564609,1753045838816,-152.0,0.00016967,2]
[373564611,1753045838826,-153.0,0.00016967,2]
[373564613,1753045838835,-152.0,0.00016967,2]
[373564615,1753045838844,-153.0,0.00016967,2]
[373564617,1753045838854,-152.0,0.00016967,2]
[373564619,1753045838863,-152.0,0.00016967,2]
[373564621,1753045838873,-153.0,0.00016967,2]
[373564623,1753045838882,-154.0,0.00016967,2]
[373564625,1753045838891,-153.0,0.00016967,2]
[373564627,1753045838901,-154.0,0.00016967,2]
[373564629,1753045838910,-153.0,0.00016967,2]
[373564631,1753045838920,-154.0,0.00016967,2]
[373564633,1753045838929,-153.0,0.00016967,2]
[373564635,1753045838938,-152.0,0.00016967,2]
[373564637,1753045838947,-154.0,0.00016967,2]
[373564639,1753045838956,-153.0,0.00016967,2]
[373564641,1753045838965,-152.0,0.00016967,2]
[373564643,1753045838975,-152.0,0.00016967,2]
[373564645,1753045838984,-152.0,0.00016967,2]
[373564647,1753045838993,-152.0,0.00016967,2]
[373564649,1753045839002,-153.0,0.00016967,2]
[373564651,1753045839012,-153.0,0.00016967,2]
[373564653,1753045839021,-152.0,0.00016967,2]
[373564655,1753045839030,-152.0,0.00016967,2]
[373564657,1753045839039,-152.0,0.00016967,2]
[373564659,1753045839048,-152.0,0.00016967,2]
[373564661,1753045839058,-153.0,0.00016967,2]
[373564663,1753045839067,-152.0,0.00016967,2]
[373564665,1753045839076,-191.53681093,0.00016967,2]
[373564667,1753045839085,-153.0,0.00016967,2]
[373564669,1753045839094,-152.0,0.00016967,2]
[373564671,1753045839103,-152.0,0.00016967,2]
[373564673,1753045839112,-152.0,0.00016967,2]
[373564674,1753045839121,-154.59506376,0.00016967,2]
[373564676,1753045839132,-152.0,0.00016967,2]
[373564678,1753045839142,-152.0,0.00016967,2]
[373564680,1753045839151,-152.0,0.00016967,2]
[373564682,1753045839160,-152.0,0.00016967,2]
[373564685,1753045839172,-152.0,0.00016967,2]
[373564687,1753045839181,-152.0,0.00016967,2]
[373564689,1753045839190,-152.0,0.00016967,2]
[373564691,1753045839199,-152.0,0.00016967,2]
[373564693,1753045839208,-152.0,0.00016967,2]
[373564694,1753045839218,-152.0,0.00016967,2]
[373564696,1753045839227,-153.44383043,0.00016967,2]
[373564698,1753045839236,-373.70795921,0.00016973,2]
[373564700,1753045839245,-151.0,0.00016989,2]
[373564702,1753045839254,-151.0,0.00016989,2]
[373564704,1753045839263,-151.0,0.00016989,2]
[373564706,1753045839272,-500.0,0.00016989,2]
[373564708,1753045839281,-151.0,0.00016989,2]
[373564710,1753045839290,-151.0,0.00016989,2]
[373564712,1753045839299,-594.24045206,0.00016989,2]
[373564714,1753045839308,-151.0,0.00016989,2]
[373564716,1753045839318,-151.0,0.00016989,2]
[373564718,1753045839327,-151.0,0.00016989,2]
[373564720,1753045839336,-151.0,0.00016989,2]
[373564722,1753045839345,-151.0,0.00016989,2]
[373564724,1753045839354,-151.0,0.00016989,2]
[373564726,1753045839363,-151.0,0.00016989,2]
[373564728,1753045839373,-151.0,0.00016989,2]
[373564730,1753045839382,-151.0,0.00016989,2]
[373564732,1753045839391,-151.0,0.00016989,2]
[373564734,1753045839400,-151.0,0.00016989,2]
[373564736,1753045839410,-277.96488827,0.00016989,2]
[373564738,1753045839419,-3407.82177886,0.00017,2]
[373564740,1753045839431,-12790.874464,0.00017,2]
[373564742,1753045839441,-3000.0,0.00017,2]
[373564745,1753045839456,-10085.67973327,0.00017,2]
[373564813,1753045840097,-338.04,0.00017,2]
[373564840,1753045840349,-7350.0,0.00017,2]
[373564842,1753045840361,-1037.31013869,0.00017,2]
[373565118,1753045843188,-6816.55193383,0.00017,2]
[373565133,1753045843351,-10519.31220001,0.00017,2]
[373565135,1753045843362,-14070.5409333,0.00017,2]
[373565145,1753045843460,-145674.98387166,0.00017,2]
[373565147,1753045843470,-6786.67315414,0.00017,2]
[373565148,1753045843480,-320026.50164978,0.00017,2]
[373565150,1753045843489,-500.0,0.00017,2]
[373565152,1753045843499,-150.0,0.00017,2]
[373565154,1753045843509,-500.0,0.00017,2]
[373565156,1753045843518,-150.0,0.00017,2]
[373565158,1753045843527,-233.98916447,0.00017,2]
[373565160,1753045843536,-753.0,0.00017,2]
[373565161,1753045843546,-507.69667,0.00017,2]
[373565163,1753045843555,-507.69667,0.00017,2]
[373565165,1753045843564,-507.69667,0.00017,2]
[373565167,1753045843573,-507.69667,0.00017,2]
[373565169,1753045843583,-507.69667,0.00017,2]
[373565171,1753045843592,-150.0,0.00017,2]
[373565172,1753045843601,-150.0,0.00017,2]
[373565174,1753045843610,-150.0,0.00017,2]
[373565176,1753045843619,-150.0,0.00017,2]
[373565178,1753045843628,-1389.0,0.00017,2]
[373565180,1753045843637,-1210.0,0.00017,2]
[373565182,1753045843646,-1210.0,0.00017,2]
[373565183,1753045843655,-1206.0,0.00017,2]
[373565185,1753045843665,-1210.0,0.00017,2]
[373565187,1753045843675,-925.88570315,0.00017,2]
[373565189,1753045843685,-153.0,0.00017,2]
[373565191,1753045843697,-153.0,0.00017,2]
[373565193,1753045843708,-1210.0,0.00017,2]
[373565195,1753045843718,-153.0,0.00017,2]
[373565196,1753045843727,-150.0,0.00017,2]
[373565198,1753045843736,-153.0,0.00017,2]
[373565200,1753045843746,-153.0,0.00017,2]
[373565202,1753045843756,-153.0,0.00017,2]
[373565204,1753045843765,-153.0,0.00017,2]
[373565206,1753045843775,-500.0,0.00017,2]
[373565208,1753045843784,-1210.0,0.00017,2]
[373565209,1753045843794,-153.0,0.00017,2]
[373565211,1753045843803,-154.0,0.00017,2]
[373565213,1753045843811,-153.0,0.00017,2]
[373565215,1753045843821,-150.0,0.00017,2]
[373565217,1753045843830,-262.42453709,0.00017,2]
[373565219,1753045843839,-154.0,0.00017,2]
[373565220,1753045843848,-150.69874847,0.00017,2]
[373565222,1753045843857,-214.28654541,0.00017,2]
[373565224,1753045843866,-150.0,0.00017,2]
[373565226,1753045843876,-151.83705436,0.00017,2]
[373565228,1753045843885,-500.0,0.00017274,2]
[373565230,1753045843894,-150.0,0.00017274,2]
[373565231,1753045843903,-602.0,0.00017274,2]
[373565233,1753045843912,-150.0,0.00017274,2]
[373565235,1753045843922,-753.0,0.00017274,2]
[373565237,1753045843931,-150.0,0.00017274,2]
[373565239,1753045843940,-150.0,0.00017274,2]
[373565241,1753045843950,-150.0,0.00017274,2]
[373565243,1753045843959,-150.0,0.00017274,2]
[373565244,1753045843968,-1389.0,0.00017274,2]
[373565246,1753045843977,-150.0,0.00017274,2]
[373565248,1753045843986,-500.0,0.00017274,2]
[373565250,1753045843996,-189.21455578,0.00017274,2]
[373565252,1753045844005,-208.13366706,0.00017515,2]
[373565254,1753045844014,-500.0,0.00017548,2]
[373565255,1753045844024,-200.0,0.00017548,2]
[373565257,1753045844033,-200.0,0.00017548,2]
[373565259,1753045844042,-753.0,0.00017548,2]
[373565261,1753045844051,-150.0,0.00017548,2]
[373565263,1753045844060,-200.0,0.00017548,2]
[373565265,1753045844069,-200.0,0.00017548,2]
[373565267,1753045844078,-200.0,0.00017548,2]
[373565268,1753045844087,-1389.0,0.00017548,2]
[373565270,1753045844096,-150.0,0.00017548,2]
[373565272,1753045844106,-350.0,0.00017548,2]
[373565274,1753045844115,-420.46,0.00017576,2]
[373565276,1753045844124,-5527.99,0.0001759,2]
[373565278,1753045844134,-600.0,0.0001759,2]
[373565279,1753045844143,-282.03,0.0001759,2]
[373565281,1753045844152,-345.13,0.0001761,2]
[373565283,1753045844162,-500.0,0.00017633,2]
[373565285,1753045844172,-150.0,0.00017633,2]
[373565287,1753045844181,-150.0,0.00017633,2]
[373565289,1753045844190,-150.0,0.00017633,2]
[373565290,1753045844199,-500.0,0.00017633,2]
[373565292,1753045844208,-150.0,0.00017633,2]
[373565307,1753045844408,-150.45928807,0.00017633,2]
[373565308,1753045844463,-500.0,0.00017633,2]
[373565309,1753045844472,-500.0,0.00017633,2]
[373565310,1753045844482,-150.0,0.00017633,2]
[373565311,1753045844491,-500.0,0.00017633,2]
[373565312,1753045844500,-902.91,0.00017658,2]
[373565313,1753045844510,-393.67,0.00017676,2]
[373565314,1753045844520,-150.0,0.00017698,2]
[373565315,1753045844529,-500.0,0.00017698,2]
[373565317,1753045844539,-150.0,0.00017698,2]
[373565318,1753045844548,-150.0,0.00017698,2]
[373565320,1753045844557,-150.0,0.00017698,2]
[373565322,1753045844566,-150.1273409,0.00017698,2]
[373565324,1753045844576,-500.0,0.00017698,2]
[373565326,1753045844585,-500.0,0.00017698,2]
[373565328,1753045844594,-150.49275652,0.00017698,2]
[373565330,1753045844603,-150.0,0.00017698,2]
[373565332,1753045844614,-150.0,0.00017698,2]
[373565335,1753045844624,-262.51,0.00017765,2]
[373565337,1753045844634,-500.0,0.00017822,2]
[373565339,1753045844644,-753.0,0.00017822,2]
[373565341,1753045844654,-150.0,0.00017822,2]
[373565343,1753045844663,-1389.0,0.00017822,2]
[373565345,1753045844674,-150.0,0.00017822,2]
[373565347,1753045844683,-500.0,0.00017907,2]
[373565349,1753045844694,-150.0,0.00017907,2]
[373565351,1753045844706,-500.0,0.00017907,2]
[373565352,1753045844716,-150.0,0.00017907,2]
[373565355,1753045844727,-500.0,0.00017907,2]
[373565357,1753045844737,-500.0,0.00017907,2]
[373565358,1753045844748,-500.0,0.00017907,2]
[373565360,1753045844759,-300.0,0.00017915,2]
[373565362,1753045844772,-150.0,0.00017972,2]
[373565364,1753045844783,-500.0,0.00017972,2]
[373565366,1753045844793,-150.0,0.00017972,2]
[373565369,1753045844803,-150.0,0.00017972,2]
[373565371,1753045844813,-150.0,0.00017972,2]
[373565373,1753045844822,-500.0,0.00017972,2]
[373565375,1753045844833,-500.0,0.00017972,2]
[373565377,1753045844843,-150.68602485,0.00017972,2]
[373565378,1753045844852,-150.0,0.00018006,2]
[373565380,1753045844863,-250.0,0.00018042,2]
[373565383,1753045844874,-1000.0,0.00018042,2]
[373565385,1753045844884,-300.0,0.00018042,2]
[373565386,1753045844894,-300.0,0.00018042,2]
[373565388,1753045844905,-476.0,0.00018096,2]
[373565391,1753045844915,-753.0,0.00018096,2]
[373565392,1753045844925,-150.0,0.00018096,2]
[373565394,1753045844934,-1389.0,0.00018096,2]
[373565396,1753045844944,-250.0,0.00018096,2]
[373565399,1753045844954,-158.69,0.00018108,2]
[373565401,1753045844963,-332.64,0.00018108,2]
[373565403,1753045844973,-152.47,0.00018108,2]
[373565405,1753045844982,-208.13366706,0.00018131,2]
[373565407,1753045844992,-500.0,0.00018181,2]
[373565409,1753045845001,-500.0,0.00018181,2]
[373565411,1753045845010,-150.0,0.00018181,2]
[373565413,1753045845019,-523.61577195,0.00018181,2]
[373565414,1753045845029,-500.0,0.00018181,2]
[373565416,1753045845039,-500.0,0.00018181,2]
[373565418,1753045845048,-167.96,0.00018221,2]
[373565421,1753045845058,-150.0,0.00018246,2]
[373565422,1753045845067,-300.0,0.00018246,2]
[373565425,1753045845077,-150.0,0.00018246,2]
[373565426,1753045845086,-500.0,0.00018246,2]
[373565428,1753045845095,-150.0,0.00018246,2]
[373565430,1753045845105,-300.0,0.00018286,2]
[373565432,1753045845114,-244.54,0.00018329,2]
[373565434,1753045845124,-753.0,0.0001837,2]
[373565436,1753045845133,-250.0,0.0001837,2]
[373565438,1753045845142,-1389.0,0.0001837,2]
[373565441,1753045845152,-150.0,0.00018402,2]
[373565443,1753045845161,-500.0,0.00018455,2]
[373565444,1753045845171,-500.0,0.00018455,2]
[373565447,1753045845180,-200.0,0.00018455,2]
[373565448,1753045845189,-465.09484513,0.00018455,2]
[373565450,1753045845199,-500.0,0.00018455,2]
[373565452,1753045845208,-420.46,0.00018455,2]
[373565454,1753045845218,-1680.0,0.00018476,2]
[373565456,1753045845227,-165.94348836,0.00018513,2]
[373565458,1753045845237,-195.73021798,0.00018513,2]
[373565461,1753045845247,-323.46603041,0.00018513,2]
[373565462,1753045845256,-500.0,0.00018513,2]
[373565465,1753045845266,-342.09663415,0.00018513,2]
[373565467,1753045845275,-153.253344,0.00018514,2]
[373565468,1753045845284,-151.0,0.00018514,2]
[373565470,1753045845294,-151.0,0.00018514,2]
[373565472,1753045845303,-295.667726,0.00018514,2]
[373565474,1753045845313,-151.0,0.00018514,2]
[373565476,1753045845322,-151.0,0.00018514,2]
[373565478,1753045845331,-151.231217,0.00018514,2]
[373565480,1753045845340,-151.0,0.00018514,2]
[373565482,1753045845349,-7142.856,0.00018514,2]
[373565484,1753045845358,-151.0,0.00018514,2]
[373565486,1753045845367,-346.92554585,0.00018514,2]
[373565488,1753045845376,-600.0,0.00018514,2]
[373565490,1753045845392,-231.28369723,0.00018514,2]
[373565492,1753045845407,-150.0,0.00018518,2]
[373565494,1753045845416,-150.0,0.00018518,2]
[373565496,1753045845426,-150.0,0.00018518,2]
[373565498,1753045845435,-150.0,0.00018518,2]
[373565500,1753045845444,-150.0,0.00018518,2]
[373565502,1753045845454,-150.0,0.00018518,2]
[373565504,1753045845463,-259.43351379,0.00018518,2]
[373565506,1753045845472,-150.0,0.00018518,2]
[373565508,1753045845482,-151.76470509,0.00018518,2]
[373565510,1753045845491,-151.9638517,0.00018518,2]
[373565512,1753045845501,-150.0,0.00018518,2]
[373565514,1753045845510,-151.21726007,0.00018518,2]
[373565516,1753045845519,-151.846454,0.00018518,2]
[373565518,1753045845528,-151.0,0.00018518,2]
[373565520,1753045845538,-151.0,0.00018518,2]
[373565522,1753045845547,-151.0,0.00018518,2]
[373565524,1753045845556,-278.94431042,0.00018518,2]
[373565526,1753045845565,-151.0,0.00018518,2]
[373565528,1753045845574,-151.0,0.00018518,2]
[373565530,1753045845583,-151.34256815,0.0001852,2]
[373565532,1753045845593,-150.0,0.0001852,2]
[373565534,1753045845602,-500.0,0.0001852,2]
[373565536,1753045845613,-151.0,0.00018524,2]
[373565538,1753045845623,-151.0,0.00018524,2]
[373565540,1753045845633,-151.79217,0.00018524,2]
[373565542,1753045845642,-151.0,0.00018524,2]
[373565544,1753045845651,-1000.0,0.00018524,2]
[373565546,1753045845660,-609.17,0.00018581,2]
[373565548,1753045845670,-524.0,0.00018588,5]
[373565550,1753045845679,-151.0,0.0001863,2]
[373565552,1753045845689,-151.0,0.0001863,2]
[373565554,1753045845702,-151.0,0.0001863,2]
[373565556,1753045845711,-151.0,0.0001863,2]
[373565558,1753045845721,-1000.0,0.0001863,2]
[373565560,1753045845731,-829.34,0.0001863,2]
[373565562,1753045845741,-279.85,0.0001863,2]
[373565564,1753045845751,-753.0,0.00018644,2]
[373565567,1753045845760,-1389.0,0.00018644,2]
[373565570,1753045845770,-150.0,0.00018708,2]
[373565574,1753045845781,-151.0,0.00018715,2]
[373565577,1753045845790,-151.0,0.00018715,2]
[373565579,1753045845799,-151.0,0.00018715,2]
[373565580,1753045845808,-151.0,0.00018715,2]
[373565583,1753045845818,-151.0,0.00018715,2]
[373565584,1753045845827,-162.755121,0.00018715,2]
[373565587,1753045845836,-151.0,0.00018715,2]
[373565588,1753045845845,-151.0,0.00018715,2]
[373565591,1753045845854,-151.281435,0.00018715,2]
[373565592,1753045845863,-277.415643,0.00018715,2]
[373565595,1753045845872,-152.779919,0.00018715,2]
[373565596,1753045845881,-164.09,0.00018718,2]
[373565598,1753045845890,-150.0,0.00018726,2]
[373565601,1753045845899,-500.0,0.00018729,2]
[373565602,1753045845909,-500.0,0.00018729,2]
[373565604,1753045845918,-200.0,0.00018729,2]
[373565607,1753045845927,-208.13366706,0.00018746,2]
[373565609,1753045845936,-164.78,0.00018748,2]
[373565610,1753045845945,-164.78,0.00018771,2]
[373565612,1753045845954,-1100.22,0.00018774,2]
[373565615,1753045845964,-150.0,0.00018775,2]
[373565616,1753045845973,-1287.0,0.00018776,2]
[373565618,1753045845982,-595.0,0.00018776,2]
[373565620,1753045845991,-1687.0,0.00018776,2]
[373565622,1753045846000,-562.0,0.00018776,2]
[373565624,1753045846009,-150.9,0.00018778,2]
[373565626,1753045846018,-200.0,0.00018794,2]
[373565628,1753045846027,-500.0,0.00018794,2]
[373565631,1753045846036,-164.78,0.00018795,2]
[373565633,1753045846046,-164.78,0.00018818,2]
[373565635,1753045846055,-4126.0,0.00018832,2]
[373565636,1753045846064,-6048.384,0.00018832,2]
[373565639,1753045846074,-862.0,0.00018832,2]
[373565640,1753045846083,-20355.0,0.00018832,2]
[373565642,1753045846092,-164.78,0.00018842,2]
[373565645,1753045846102,-164.78,0.00018865,2]
[373565646,1753045846112,-594.26254616,0.0001887,2]
[373565648,1753045846122,-164.78,0.00018889,2]
[373565650,1753045846131,-313.04,0.000189,2]
[373565653,1753045846140,-1800.0,0.000189,6]
[373565655,1753045846150,-253.16662115,0.000189,2]
[373565657,1753045846159,-253.16662104,0.000189,2]
[373565658,1753045846168,-253.16662104,0.000189,2]
[373565660,1753045846178,-253.16662104,0.000189,2]
[373565663,1753045846187,-253.16662104,0.000189,2]
[373565664,1753045846196,-253.16662104,0.000189,2]
[373565667,1753045846206,-253.16662104,0.000189,2]
[373565669,1753045846216,-253.16662104,0.000189,2]